bitfinex-derivatives/quotes_BTCF0:USTF0_20251108
["timestamp","ask_amount","ask_price","bid_price","bid_amount"]
[1762566763545,0.32625413,103130.0,103120.0,0.45806411]
[1762566764046,0.32625413,103130.0,103120.0,0.36101701]
[1762566764451,0.32825413,103130.0,103120.0,0.36101701]
[1762566764748,0.24545171,103130.0,103120.0,0.45806411]
[1762566764951,0.24545171,103130.0,103120.0,0.54086653]
[1762566771257,0.1582177,103130.0,103120.0,0.54086653]
[1762566771560,0.24543586,103130.0,103120.0,0.54086653]
[1762566773560,0.24543189,103130.0,103120.0,0.54086653]
[1762566774560,0.1582177,103130.0,103120.0,0.54086653]
[1762566774974,0.27978848,103130.0,103120.0,0.54086653]
[1762566775373,0.1582177,103130.0,103120.0,0.54086653]
[1762566776375,0.1582177,103130.0,103120.0,0.45806411]
[1762566778678,0.27978848,103130.0,103120.0,0.45806411]
[1762566779676,0.36701009,103130.0,103120.0,0.45806411]
[1762566779869,0.24543931,103130.0,103120.0,0.45806411]
[1762566780069,0.24543931,103130.0,103120.0,0.09726411]
[1762566780266,0.24543931,103130.0,103120.0,0.45806411]
[1762566781377,0.1582177,103130.0,103120.0,0.45806411]
[1762566782070,0.1582177,103130.0,103120.0,0.56855112]
[1762566782071,0.11060431,103130.0,103120.0,0.56855112]
[1762566782384,0.10285431,103130.0,103120.0,0.56855112]
[1762566782575,0.08920431,103130.0,103120.0,0.56855112]
[1762566782877,0.11060431,103130.0,103120.0,0.56855112]
[1762566784781,0.12357078,103130.0,103120.0,0.56855112]
[1762566786879,0.14497078,103130.0,103120.0,0.45806411]
[1762566787182,0.12357078,103130.0,103120.0,0.56855112]
[1762566788387,0.14497078,103130.0,103120.0,0.56855112]
[1762566789591,0.12357078,103130.0,103120.0,0.56855112]
[1762566790881,0.08932586,103130.0,103120.0,0.56855112]
[1762566791186,0.12357078,103130.0,103120.0,0.56855112]
[1762566791389,0.210863,103130.0,103120.0,0.56855112]
[1762566791687,0.08929222,103130.0,103120.0,0.56855112]
[1762566792084,2.22e-06,103130.0,103120.0,0.92147813]
[1762566792281,0.12171638,103140.0,103130.0,0.0970377]
[1762566792588,0.0001456,103140.0,103130.0,0.56832471]
[1762566793490,0.0351956,103140.0,103130.0,0.56832471]
[1762566793686,0.0401956,103140.0,103130.0,0.56832471]
[1762566793890,0.0635156,103140.0,103130.0,0.56832471]
[1762566794482,0.0391956,103140.0,103130.0,0.56832471]
[1762566794687,0.10892815,103140.0,103130.0,0.56832471]
[1762566795785,0.10592815,103140.0,103130.0,0.56832471]
[1762566796790,0.12924815,103140.0,103130.0,0.56832471]
[1762566802689,0.0595156,103140.0,103130.0,0.56832471]
[1762566803096,0.22627645,103140.0,103130.0,0.56832471]
[1762566804192,0.22527645,103140.0,103130.0,0.56832471]
[1762566804389,0.22627645,103140.0,103130.0,0.3608]
[1762566804692,0.1565439,103140.0,103130.0,0.4578377]
[1762566808895,0.1565439,103140.0,103130.0,0.56832471]
[1762566809095,0.1565439,103140.0,103130.0,0.4578377]
[1762566809693,0.22627645,103140.0,103130.0,0.4578377]
[1762566810290,0.12924815,103140.0,103130.0,0.4578377]
[1762566811589,0.12924815,103140.0,103130.0,0.56832471]
[1762566811795,0.22627645,103140.0,103130.0,0.56832471]
[1762566814295,0.12924815,103140.0,103130.0,0.56832471]
[1762566814495,0.0595156,103140.0,103130.0,0.56832471]
[1762566814798,0.14659327,103140.0,103130.0,0.56832471]
[1762566815999,0.24362157,103140.0,103130.0,0.56832471]
[1762566823107,0.24362157,103140.0,103130.0,0.4578377]
[1762566823307,0.24362157,103140.0,103130.0,0.56832471]
[1762566824800,0.27811468,103140.0,103130.0,0.4578377]
[1762566827503,0.18108638,103140.0,103130.0,0.56832471]
[1762566828710,0.27811468,103140.0,103130.0,0.56832471]
[1762566831008,0.18108638,103140.0,103130.0,0.56832471]
[1762566831817,0.27811468,103140.0,103130.0,0.56832471]
[1762566833421,0.27811468,103140.0,103130.0,0.4578377]
[1762566833617,0.27811468,103140.0,103130.0,0.56832471]
[1762566835205,0.1565439,103140.0,103130.0,0.56832471]
[1762566835807,0.24389456,103140.0,103130.0,0.56832471]
[1762566836208,0.1565439,103140.0,103130.0,0.56832471]
[1762566836409,0.0595156,103140.0,103130.0,0.54068157]
[1762566836613,0.1468661,103140.0,103130.0,0.54068157]
[1762566836820,0.2438944,103140.0,103130.0,0.54068157]
[1762566837217,0.1468661,103140.0,103130.0,0.54068157]
[1762566840428,0.2438944,103140.0,103130.0,0.54068157]
[1762566841334,0.2438944,103140.0,103130.0,0.3608]
[1762566841524,0.2438944,103140.0,103130.0,0.54068157]
[1762566841829,0.1565439,103140.0,103130.0,0.54068157]
[1762566842024,0.27811468,103140.0,103130.0,0.54068157]
[1762566843232,0.23938777,103140.0,103130.0,0.3608]
[1762566843536,0.1551477,103130.0,103120.0,0.54090768]
[1762566843735,0.27671848,103130.0,103120.0,0.54090768]
[1762566844534,0.27771848,103130.0,103120.0,0.54090768]
[1762566846635,0.27871848,103130.0,103120.0,0.54090768]
[1762566847137,0.27771848,103130.0,103120.0,0.54090768]
[1762566850234,0.27771848,103130.0,103120.0,0.44386088]
[1762566850436,0.36056235,103130.0,103120.0,0.54090798]
[1762566850846,0.36056235,103130.0,103120.0,0.70659572]
[1762566850847,0.12257078,103130.0,103120.0,0.70659572]
[1762566851039,0.10181407,103130.0,103120.0,0.70659572]
[1762566851337,0.10181407,103130.0,103120.0,0.62375185]
[1762566851542,0.08436399,103130.0,103120.0,0.62375185]
[1762566851736,0.08436399,103130.0,103120.0,0.70659572]
[1762566852043,0.08436399,103130.0,103120.0,0.62375185]
[1762566852641,0.12888399,103130.0,103120.0,0.62375185]
[1762566852943,0.10655399,103130.0,103120.0,0.62375185]
[1762566856748,0.10655399,103130.0,103120.0,0.70659572]
[1762566856949,0.07077399,103130.0,103120.0,0.70659572]
[1762566859442,0.001,103130.0,103120.0,0.70659572]
[1762566860348,0.001,103130.0,103120.0,0.85619572]
[1762566861150,0.05331529,103130.0,103120.0,0.85619572]
[1762566866954,0.06667529,103130.0,103120.0,0.85619572]
[1762566867656,0.08831529,103130.0,103120.0,0.85619572]
[1762566868950,0.11087529,103130.0,103120.0,0.85619572]
[1762566869255,0.11087529,103130.0,103120.0,0.77335185]
[1762566870847,0.22537169,103130.0,103120.0,0.77335185]
[1762566871155,0.1555977,103130.0,103120.0,0.59346088]
[1762566871454,0.24282177,103130.0,103120.0,0.69050798]
[1762566871853,0.14578407,103130.0,103120.0,0.77335185]
[1762566872053,0.14578407,103130.0,103120.0,0.62375185]
[1762566872848,0.21552666,103130.0,103120.0,0.62375185]
[1762566873050,0.12830259,103130.0,103120.0,0.62375185]
[1762566874659,0.05856,103130.0,103120.0,0.62375185]
[1762566874854,0.14578407,103130.0,103120.0,0.62375185]
[1762566876955,0.12322407,103130.0,103120.0,0.62375185]
[1762566877261,0.01436,103130.0,103120.0,0.70659572]
[1762566877448,0.08411307,103130.0,103120.0,0.70659572]
[1762566877961,0.08411307,103130.0,103120.0,0.85619572]
[1762566879447,0.07075307,103130.0,103120.0,0.85619572]
[1762566882462,0.08381307,103130.0,103120.0,0.85619572]
[1762566883364,0.06640096,103130.0,103120.0,0.85619572]
[1762566884563,0.05334096,103130.0,103120.0,0.85619572]
[1762566889163,0.06640096,103130.0,103120.0,0.85619572]
[1762566890578,0.05334096,103130.0,103120.0,1.09863572]
[1762566891971,0.05334096,103130.0,103120.0,0.85619572]
[1762566895088,0.06640096,103130.0,103120.0,0.85619572]
[1762566898288,0.06640096,103130.0,103120.0,0.7180773]
[1762566898593,0.05334096,103130.0,103120.0,1.07093049]
[1762566899291,0.05334096,103130.0,103120.0,0.82849049]
[1762566899494,0.05334096,103130.0,103120.0,1.07093049]
[1762566900299,6e-08,103130.0,103120.0,0.82849049]
[1762566900485,0.08354867,103140.0,103130.0,0.0970377]
[1762566900486,0.06989867,103140.0,103130.0,0.0970377]
[1762566900689,0.0593356,103140.0,103130.0,0.56825089]
[1762566901084,0.0001456,103140.0,103130.0,0.71785089]
[1762566901389,0.06975307,103150.0,103140.0,0.0970283]
[1762566901590,0.06975307,103150.0,103140.0,0.56824149]
[1762566901790,0.10594307,103160.0,103150.0,0.0970189]
[1762566901990,0.12886307,103160.0,103150.0,0.56823209]
[1762566903095,0.12986307,103160.0,103150.0,0.56823209]
[1762566904694,0.13086307,103160.0,103150.0,0.56823209]
[1762566905195,0.13086307,103160.0,103150.0,0.4578189]
[1762566905390,0.13086307,103160.0,103150.0,0.56823209]
[1762566906792,0.13086307,103160.0,103150.0,0.47121319]
[1762566906793,0.1581195,103160.0,103150.0,0.47121319]
[1762566907096,0.1581195,103160.0,103150.0,0.3608]
[1762566907395,0.24534357,103160.0,103150.0,0.3608]
[1762566907789,0.24534357,103160.0,103150.0,0.4578189]
[1762566908096,0.14833407,103160.0,103150.0,0.4578189]
[1762566908496,0.14833407,103160.0,103150.0,0.56823209]
[1762566909200,0.24534357,103160.0,103150.0,0.47121319]
[1762566909497,0.24534357,103160.0,103150.0,0.56823209]
[1762566911201,0.14833407,103160.0,103150.0,0.56823209]
[1762566911502,0.22782939,103160.0,103150.0,0.56823209]
[1762566914299,0.05919,103130.0,103120.0,0.36087141]
[1762566914596,0.0970659,103100.0,103090.0,0.48142319]
[1762566914803,0.1562559,103100.0,103090.0,0.37101]
[1762566915100,0.22592105,103100.0,103090.0,0.1072853]
[1762566915300,0.22592105,103100.0,103090.0,0.4680853]
[1762566915497,0.22599246,103100.0,103090.0,0.4680853]
[1762566916396,0.22699246,103100.0,103090.0,0.4800853]
[1762566916796,0.22899246,103100.0,103090.0,0.4800853]
[1762566917303,0.22899246,103100.0,103090.0,0.38301]
[1762566918004,0.22899246,103100.0,103090.0,0.39322]
[1762566918803,0.22799246,103100.0,103090.0,0.4782953]
[1762566919194,0.15632731,103100.0,103090.0,0.4782953]
[1762566920407,0.15632731,103100.0,103090.0,0.38122]
[1762566920408,0.20839134,103100.0,103090.0,0.38122]
[1762566920611,0.20839134,103100.0,103090.0,0.37101]
[1762566920612,0.15632731,103100.0,103090.0,0.37101]
[1762566921208,0.20837509,103100.0,103090.0,0.37101]
[1762566921411,0.15632731,103100.0,103090.0,0.01021]
[1762566921709,0.1562653,103090.0,103080.0,0.4784441]
[1762566922008,0.24300226,103090.0,103080.0,0.4784441]
[1762566922200,0.25576911,103090.0,103080.0,0.3609456]
[1762566922399,0.22114574,103090.0,103080.0,0.0001456]
[1762566922606,0.16910356,103090.0,103080.0,0.0001456]
[1762566923110,0.17010356,103090.0,103080.0,0.0021456]
[1762566923305,0.22209753,103090.0,103080.0,0.0992303]
[1762566924104,0.10767781,103090.0,103080.0,0.4600303]
[1762566924307,0.20475311,103090.0,103080.0,0.4804503]
[1762566924506,0.10767781,103090.0,103080.0,0.4804503]
[1762566924907,0.10767781,103090.0,103080.0,0.59086349]
[1762566925111,0.17010356,103090.0,103080.0,0.59086349]
[1762566925812,0.07302826,103090.0,103080.0,0.59086349]
[1762566927009,0.10767781,103090.0,103080.0,0.59086349]
[1762566927313,0.07302826,103090.0,103080.0,0.59086349]
[1762566928513,0.03697826,103090.0,103080.0,0.70127668]
[1762566928720,0.07198826,103090.0,103080.0,0.59086349]
[1762566929012,0.16906356,103090.0,103080.0,0.49377879]
[1762566929518,0.16906356,103090.0,103080.0,0.3833656]
[1762566929720,0.20371311,103090.0,103080.0,0.3833656]
[1762566929921,0.20371311,103090.0,103080.0,0.3629456]
[1762566930714,0.20371311,103090.0,103080.0,0.3731556]
[1762566930922,0.20371311,103090.0,103080.0,0.4702403]
[1762566931317,0.20371311,103090.0,103080.0,0.4804503]
[1762566932119,0.20371311,103090.0,103080.0,0.3731556]
[1762566932311,0.20371311,103090.0,103080.0,0.0123556]
[1762566932512,0.20371311,103090.0,103080.0,0.0021456]
[1762566933324,0.56451311,103090.0,103080.0,0.0021456]
[1762566933520,0.6749263,103090.0,103080.0,0.0021456]
[1762566933726,0.20371311,103090.0,103080.0,0.0021456]
[1762566934522,0.20371311,103090.0,103080.0,0.0992303]
[1762566935125,0.25570708,103090.0,103080.0,0.0992303]
[1762566935712,0.1537941,103070.0,103060.0,0.4681133]
[1762566935919,0.15386551,103070.0,103060.0,0.4783233]
[1762566936135,0.05677141,103070.0,103060.0,0.58873649]
[1762566936923,0.05877141,103070.0,103060.0,0.58873649]
[1762566937221,0.05877141,103070.0,103060.0,0.4783233]
[1762566937416,0.05877141,103070.0,103060.0,0.58873649]
[1762566937924,0.05977141,103070.0,103060.0,0.60073649]
[1762566939020,0.15686551,103070.0,103060.0,0.60073649]
[1762566939214,0.19149285,103070.0,103060.0,0.60073649]
[1762566940323,0.19149285,103070.0,103060.0,0.50363319]
[1762566940721,0.19149285,103070.0,103060.0,0.60073679]
[1762566941431,0.19149285,103070.0,103060.0,0.4903236]
[1762566941730,0.19149285,103070.0,103060.0,0.60073679]
[1762566942934,0.09439875,103070.0,103060.0,0.60073679]
[1762566943124,0.20885948,103070.0,103060.0,0.60073679]
[1762566945330,0.20885948,103070.0,103060.0,0.50363319]
[1762566945530,0.20885948,103070.0,103060.0,0.60073679]
[1762566948133,0.15686551,103070.0,103060.0,0.60073679]
[1762566948436,0.20920168,103070.0,103060.0,0.60073679]
[1762566948632,0.20920168,103070.0,103060.0,0.4903236]
[1762566949134,0.15686551,103070.0,103060.0,0.4903236]
[1762566949336,0.15386551,103070.0,103060.0,0.4783236]
[1762566949524,0.22553066,103070.0,103060.0,0.4843236]
[1762566950028,0.22553066,103070.0,103060.0,0.59473679]
[1762566952730,0.12843656,103070.0,103060.0,0.59473679]
[1762566953232,0.22553066,103070.0,103060.0,0.59473679]
[1762566954137,0.12843656,103070.0,103060.0,0.59473679]
[1762566954639,0.22553066,103070.0,103060.0,0.59473679]
[1762566959138,0.22553066,103070.0,103060.0,0.4843236]
[1762566959343,0.2662787,103070.0,103060.0,0.01621]
[1762566959646,0.15586551,103070.0,103060.0,0.02642]
[1762566960446,0.15586551,103070.0,103060.0,0.1093809]
[1762566961040,0.23882641,103070.0,103060.0,0.0889609]
[1762566961340,0.23882641,103070.0,103060.0,0.2064845]
[1762566961537,0.22573989,103070.0,103060.0,0.2064845]
[1762566965146,0.15586551,103070.0,103060.0,0.2064845]
[1762566967059,0.15586551,103070.0,103060.0,0.5672845]
[1762566967959,0.24305047,103070.0,103060.0,0.5672845]
[1762566969463,0.32601137,103070.0,103060.0,0.38722]
[1762566969666,0.32601137,103070.0,103060.0,0.02642]
[1762566970257,0.156963,103050.0,103040.0,0.5613008]
[1762566970457,0.22691472,103050.0,103040.0,0.4783399]
[1762566970651,0.22691472,103050.0,103040.0,0.5613008]
[1762566971554,0.15703441,103050.0,103040.0,0.5613008]
[1762566972362,0.16003441,103050.0,103040.0,0.5703008]
[1762566973155,0.24721937,103050.0,103040.0,0.5703008]
[1762566973363,0.16003441,103050.0,103040.0,0.5703008]
[1762566973662,0.15803441,103050.0,103040.0,0.5703008]
[1762566973866,0.16003441,103050.0,103040.0,0.5703008]
[1762566974056,0.24721937,103050.0,103040.0,0.5703008]
[1762566975660,0.16003441,103050.0,103040.0,0.5703008]
[1762566976264,0.24730947,103050.0,103040.0,0.5703008]
[1762566976467,0.15019647,103050.0,103040.0,0.6532617]
[1762566977565,0.24730947,103050.0,103040.0,0.6532617]
[1762566983366,0.24299531,103050.0,103040.0,0.02942]
[1762566983762,0.36456609,103050.0,103040.0,0.02942]
[1762566984757,0.45182779,103050.0,103040.0,0.02942]
[1762566984964,0.32925701,103050.0,103040.0,0.02042]
[1762566985163,0.32925701,103050.0,103040.0,0.02142]
[1762566986172,0.32925701,103050.0,103040.0,0.1185424]
[1762566986859,0.02532141,103050.0,103040.0,0.6452642]
[1762566987064,0.07187798,103050.0,103040.0,0.6452642]
[1762566987767,0.00187798,103050.0,103040.0,0.7282251]
[1762566988071,0.0137456,103060.0,103050.0,0.097113]
[1762566988261,0.0137456,103060.0,103050.0,0.6238348]
[1762566989372,0.0157456,103060.0,103050.0,0.6238348]
[1762566990371,0.0147456,103060.0,103050.0,0.6248348]
[1762566990873,0.0011456,103060.0,103050.0,0.6248348]
[1762566991070,0.05348873,103060.0,103050.0,0.6248348]
[1762566991368,0.05448873,103060.0,103050.0,0.6258348]
[1762566992763,0.25646933,103090.0,103080.0,0.0970847]
[1762566992969,0.15614855,103090.0,103080.0,0.2630065]
[1762566993368,0.06888685,103090.0,103080.0,0.9846065]
[1762566994077,0.07188685,103090.0,103080.0,0.9856065]
[1762566994973,0.07288685,103090.0,103080.0,0.9856065]
[1762566997783,0.14250999,103090.0,103080.0,0.9856065]
[1762566998274,0.07288685,103090.0,103080.0,0.9856065]
[1762567002785,0.14250999,103090.0,103080.0,0.9856065]
[1762567004086,0.14250999,103090.0,103080.0,1.1352065]
[1762567010078,0.14250999,103090.0,103080.0,0.9856065]
[1762567013892,0.23958529,103090.0,103080.0,0.6248065]
[1762567014095,0.32254619,103090.0,103080.0,0.3618]
[1762567014392,0.34018475,103090.0,103080.0,0.3618]
[1762567014593,0.34018475,103090.0,103080.0,0.001]
[1762567014788,0.37449383,103090.0,103080.0,0.001]
[1762567015184,0.73529383,103090.0,103080.0,0.001]
[1762567015385,0.73529383,103090.0,103080.0,0.00019657]
[1762567015584,0.61372305,103090.0,103080.0,0.00019657]
[1762567016793,0.61372305,103090.0,103080.0,0.09728127]
[1762567017198,0.1557547,103080.0,103070.0,0.4580334]
[1762567017390,0.36081049,103080.0,103070.0,0.4580334]
[1762567017694,0.36081049,103080.0,103070.0,0.5409943]
[1762567017894,0.26372579,103080.0,103070.0,0.5409943]
[1762567018194,0.27784959,103080.0,103070.0,0.5409943]
[1762567018791,0.27984959,103080.0,103070.0,0.5419943]
[1762567019494,0.27984959,103080.0,103070.0,0.5429943]
[1762567020292,0.27984959,103080.0,103070.0,0.4600334]
[1762567021692,0.27984959,103080.0,103070.0,0.3629456]
[1762567021896,0.27984959,103080.0,103070.0,0.0992398]
[1762567022289,0.1577547,103080.0,103070.0,0.0992398]
[1762567023296,0.27989415,103080.0,103070.0,0.0992398]
[1762567023499,0.39048332,103080.0,103070.0,0.0021456]
[1762567023695,0.26834387,103080.0,103070.0,0.0021456]
[1762567023895,0.26834387,103080.0,103070.0,0.0992398]
[1762567024496,0.1577547,103080.0,103070.0,0.0992398]
[1762567024695,0.2798784,103080.0,103070.0,0.0992398]
[1762567026399,0.1577547,103080.0,103070.0,0.0992398]
[1762567029095,0.1577547,103080.0,103070.0,0.0021456]
[1762567029591,0.1195642,103070.0,103060.0,0.4578952]
[1762567029909,0.35283945,103070.0,103060.0,0.3608]
[1762567030202,0.35283945,103070.0,103060.0,0.4579036]
[1762567031201,0.35383945,103070.0,103060.0,0.4589036]
[1762567031602,0.35483945,103070.0,103060.0,0.4589036]
[1762567031794,0.24425028,103070.0,103060.0,0.4589036]
[1762567032190,0.24525028,103070.0,103060.0,0.4589036]
[1762567032390,0.24425028,103070.0,103060.0,0.4589036]
[1762567033804,0.24425028,103070.0,103060.0,0.0981036]
[1762567034102,0.35483945,103070.0,103060.0,0.0981036]
[1762567034303,0.35483945,103070.0,103060.0,0.001]
[1762567036809,0.35483945,103070.0,103060.0,0.0981036]
[1762567038903,0.71563945,103070.0,103040.0,0.457916]
[1762567039109,0.22483287,103050.0,103040.0,0.457916]
[1762567040605,0.22583287,103050.0,103040.0,0.457916]
[1762567041708,0.22583287,103050.0,103040.0,0.3608]
[1762567041913,0.22583287,103050.0,103030.0,0.45803016]
[1762567041914,0.1550724,103040.0,103030.0,0.45803016]
[1762567042209,0.22484038,103040.0,103030.0,0.56861933]
[1762567042803,0.12771798,103040.0,103030.0,0.45803016]
[1762567043200,0.05795,103040.0,103030.0,0.56861933]
[1762567043613,0.05895,103040.0,103030.0,0.56861933]
[1762567044613,0.06095,103040.0,103030.0,0.56861933]
[1762567044809,0.11327609,103040.0,103030.0,0.56861933]
[1762567049116,0.11327609,103040.0,103030.0,0.20781933]
[1762567049319,0.11327609,103040.0,103030.0,0.92941933]
[1762567049816,0.06879609,103040.0,103030.0,0.92941933]
[1762567050018,0.05532609,103040.0,103030.0,1.17205933]
[1762567050213,0.003,103040.0,103030.0,1.17205933]
[1762567050609,0.0163,103040.0,103030.0,0.92941933]
[1762567051018,0.0163,103040.0,103030.0,1.32165933]
[1762567051220,0.003,103040.0,103030.0,1.32165933]
[1762567051711,0.003,103040.0,103030.0,1.07901933]
[1762567052017,0.003,103040.0,103030.0,1.32165933]
[1762567052718,0.003,103040.0,103030.0,1.07901933]
[1762567052913,0.003,103040.0,103030.0,1.32165933]
[1762567053115,0.05232609,103050.0,103040.0,0.0971224]
[1762567053322,0.05232609,103050.0,103040.0,0.56851157]
[1762567054116,0.06562609,103050.0,103040.0,0.56851157]
[1762567054516,0.06662609,103050.0,103040.0,0.56851157]
[1762567054723,0.06762609,103050.0,103040.0,0.56851157]
[1762567055322,0.09056609,103050.0,103040.0,0.56851157]
[1762567056721,0.09056609,103050.0,103040.0,0.71811157]
[1762567057415,0.11233609,103050.0,103040.0,0.71811157]
[1762567063327,0.06001,103050.0,103040.0,0.71811157]
[1762567064129,0.12977798,103050.0,103040.0,0.71811157]
[1762567067331,0.06001,103050.0,103040.0,0.71811157]
[1762567068126,0.12982712,103050.0,103040.0,0.71811157]
[1762567068325,0.06001,103050.0,103040.0,0.71811157]
[1762567068824,0.14721608,103050.0,103040.0,0.71811157]
[1762567069019,0.14721608,103050.0,103040.0,0.5104]
[1762567069225,0.24432908,103050.0,103040.0,0.6075224]
[1762567069523,0.14721608,103050.0,103040.0,0.6075224]
[1762567070336,0.24432908,103050.0,103040.0,0.6075224]
[1762567070529,0.14721608,103050.0,103040.0,0.6075224]
[1762567071234,0.24432908,103050.0,103040.0,0.6075224]
[1762567072231,0.157123,103050.0,103040.0,0.6075224]
[1762567073234,0.24432908,103050.0,103040.0,0.6075224]
[1762567073826,0.14721608,103050.0,103040.0,0.6075224]
[1762567074034,0.14721608,103050.0,103040.0,0.71811157]
[1762567074429,0.14721608,103050.0,103040.0,0.56851157]
[1762567074834,0.12985307,103050.0,103040.0,0.56851157]
[1762567076735,0.22696607,103050.0,103040.0,0.3608]
[1762567076939,0.157123,103050.0,103040.0,0.4579224]
[1762567077435,0.157123,103050.0,103040.0,0.3608]
[1762567077639,0.157123,103050.0,103040.0,0.4579224]
[1762567079237,0.22696607,103050.0,103040.0,0.4579224]
[1762567082038,0.12985307,103050.0,103040.0,0.4579224]
[1762567082237,0.22696607,103050.0,103040.0,0.4579224]
[1762567082445,0.22696607,103050.0,103040.0,0.54090094]
[1762567084039,0.24432908,103050.0,103040.0,0.54090094]
[1762567084241,0.157123,103050.0,103040.0,0.54090094]
[1762567084443,0.22699395,103050.0,103040.0,0.54090094]
[1762567087041,0.30997249,103050.0,103040.0,0.3608]
[1762567087441,0.30997249,103050.0,103040.0,0.4579224]
[1762567089146,0.30997249,103050.0,103040.0,0.3608]
[1762567089846,0.30997249,103050.0,103040.0,0.4579224]
[1762567090042,0.30997249,103050.0,103040.0,0.3608]
[1762567090238,0.32730762,103050.0,103040.0,0.4579224]
[1762567094154,0.24010154,103050.0,103040.0,0.4579224]
[1762567095162,0.32741115,103050.0,103040.0,0.4579224]
[1762567095353,0.24010154,103050.0,103040.0,0.4579224]
[1762567096162,0.32740555,103050.0,103040.0,0.4579224]
[1762567096754,0.24442701,103050.0,103040.0,0.4579224]
[1762567096953,0.32740555,103050.0,103040.0,0.54090094]
[1762567097261,0.14731401,103050.0,103040.0,0.54090094]
[1762567098167,0.24442701,103050.0,103040.0,0.54090094]
[1762567104364,0.24442701,103050.0,103040.0,0.4579224]
[1762567104566,0.32740555,103050.0,103040.0,0.54090094]
[1762567104772,0.157123,103050.0,103040.0,0.54090094]
[1762567104972,0.2792467,103050.0,103040.0,0.54090094]
[1762567106573,0.1374237,103050.0,103040.0,0.54090094]
[1762567106874,0.05255068,103060.0,103050.0,0.097113]
[1762567107176,0.05255068,103060.0,103050.0,0.86647008]
[1762567107381,0.12350706,103080.0,103070.0,0.0970942]
[1762567107571,0.03618,103080.0,103070.0,0.90167274]
[1762567107767,0.0592,103080.0,103070.0,0.90167274]
[1762567109075,0.0602,103080.0,103070.0,0.90267274]
[1762567109466,0.0632,103080.0,103070.0,0.90267274]
[1762567109884,0.0602,103080.0,103070.0,0.90267274]
[1762567110070,0.0612,103080.0,103070.0,0.90367274]
[1762567111683,0.0612,103080.0,103070.0,0.90467274]
[1762567116583,0.1582847,103080.0,103070.0,0.90467274]
[1762567116784,0.22782691,103080.0,103070.0,0.90467274]
[1762567116980,0.13074221,103080.0,103070.0,0.90467274]
[1762567119282,0.0612,103080.0,103070.0,0.90467274]
[1762567120984,0.22782691,103080.0,103070.0,0.80757854]
[1762567121280,0.22782691,103080.0,103070.0,0.90467274]
[1762567123388,0.31080545,103080.0,103070.0,0.8216942]
[1762567123583,0.24126324,103080.0,103070.0,0.8216942]
[1762567123785,0.3285903,103080.0,103070.0,0.8216942]
[1762567124790,0.39812432,103080.0,103070.0,0.8216942]
[1762567124979,0.31079726,103080.0,103070.0,0.8216942]
[1762567126389,0.24126324,103080.0,103070.0,0.90467274]
[1762567126891,0.0612,103080.0,103070.0,0.90467274]
[1762567127095,0.03818,103080.0,103070.0,0.98765128]
[1762567127390,0.0603,103080.0,103070.0,0.90467274]
[1762567131795,0.0603,103080.0,103070.0,0.8216942]
[1762567131978,0.1573847,103080.0,103070.0,0.8216942]
[1762567132185,0.1573847,103080.0,103070.0,0.90467274]
[1762567133386,0.24036324,103080.0,103070.0,0.7246]
[1762567133693,0.24036324,103080.0,103070.0,0.80757854]
[1762567134093,0.24036324,103080.0,103070.0,0.90467274]
[1762567134393,0.24036324,103080.0,103070.0,0.8216942]
[1762567134589,0.24036324,103080.0,103070.0,0.7246]
[1762567135295,0.3276903,103080.0,103070.0,0.8216942]
[1762567137092,0.24471176,103080.0,103070.0,0.8216942]
[1762567137289,0.3276903,103080.0,103070.0,0.8216942]
[1762567142298,0.24471176,103080.0,103070.0,0.8216942]
[1762567142601,0.36683546,103080.0,103070.0,0.8216942]
[1762567142794,0.2795084,103080.0,103070.0,0.8216942]
[1762567144795,0.36681906,103080.0,103070.0,0.8216942]
[1762567145298,0.24469536,103080.0,103070.0,0.8216942]
[1762567148401,0.1573847,103080.0,103070.0,0.8216942]
[1762567150299,0.2795084,103080.0,103070.0,0.8216942]
[1762567152401,0.36683123,103080.0,103070.0,0.8216942]
[1762567152905,0.24470753,103080.0,103070.0,0.8216942]
[1762567154803,0.1573847,103080.0,103070.0,0.8216942]
[1762567155116,0.2795084,103080.0,103070.0,0.8216942]
[1762567159506,0.22725769,103080.0,103070.0,0.8216942]
[1762567161509,0.22725769,103080.0,103070.0,0.4608942]
[1762567164800,0.1573847,103080.0,103070.0,0.4608942]
[1762567165202,0.22725769,103080.0,103070.0,0.4608942]
[1762567166810,0.22725769,103080.0,103070.0,0.4608941]
[1762567168013,0.1573847,103080.0,103070.0,0.4608941]
[1762567168405,0.2795084,103080.0,103070.0,0.4608941]
[1762567170310,0.75090827,103080.0,103070.0,0.003]
[1762567170613,0.39010827,103080.0,103070.0,0.00078301]
[1762567170802,0.26798457,103080.0,103070.0,0.00078301]
[1762567171011,0.26798457,103080.0,103070.0,0.09787721]
[1762567174915,0.26798457,103080.0,103070.0,0.45867721]
[1762567175618,0.0603,103080.0,103070.0,0.45867721]
[1762567176412,0.1573847,103080.0,103070.0,0.45867721]
[1762567181425,0.26798457,103080.0,103070.0,0.36158301]
[1762567181927,0.62878457,103080.0,103070.0,0.00078301]
[1762567182323,0.75110734,103080.0,103070.0,0.00078301]
[1762567183825,0.75110734,103080.0,103070.0,0.00020472]
[1762567184019,0.75107362,103080.0,103070.0,0.00020472]
[1762567186325,0.27967375,103080.0,103070.0,0.45809892]
[1762567186623,0.1573847,103080.0,103070.0,0.45809892]
[1762567187626,0.24471577,103080.0,103070.0,0.45809892]
[1762567188027,0.14763107,103080.0,103070.0,0.45809892]
[1762567188618,0.24471577,103080.0,103070.0,0.45809892]
[1762567189134,0.14763107,103080.0,103070.0,0.45809892]
[1762567190134,0.18258905,103080.0,103070.0,0.45809892]
[1762567192642,0.27967375,103080.0,103070.0,0.45809892]
[1762567194844,0.18258905,103080.0,103070.0,0.45809892]
[1762567197337,0.18258905,103080.0,103070.0,0.56869879]
[1762567197743,0.0603,103080.0,103070.0,0.56869879]
[1762567199947,0.1573848,103080.0,103070.0,0.56869879]
[1762567200246,0.0603,103080.0,103070.0,0.45809892]
[1762567200950,0.18258905,103080.0,103070.0,0.45809892]
[1762567201451,0.18258905,103080.0,103070.0,0.56869879]
[1762567201946,0.18258905,103080.0,103070.0,0.45809892]
[1762567202252,0.27967385,103080.0,103070.0,0.45809892]
[1762567204448,0.36262082,103080.0,103070.0,0.54104589]
[1762567204749,0.36262082,103080.0,103070.0,0.40988766]
[1762567204945,0.24033177,103080.0,103070.0,0.40988766]
[1762567205144,0.24033177,103080.0,103070.0,0.50698186]
[1762567205446,0.1573848,103080.0,103070.0,0.50698186]
[1762567205846,0.24033177,103080.0,103070.0,0.50698186]
[1762567206353,0.24033177,103080.0,103070.0,0.42403489]
[1762567206648,0.1410342,103070.0,103060.0,0.4580426]
[1762567206847,0.35931056,103070.0,103060.0,0.54098957]
[1762567207550,0.23702117,103070.0,103060.0,0.54098957]
[1762567207956,0.23802117,103070.0,103060.0,0.54198957]
[1762567208248,0.23902117,103070.0,103060.0,0.54298957]
[1762567208443,0.36131056,103070.0,103060.0,0.54298957]
[1762567208654,0.26421636,103070.0,103060.0,0.54298957]